[Event "Late-Titled-Tuesday-Blitz-October-10-2023"]
[Site "Chess.com"]
[Date "2023.10.10"]
[Round "5"]
[White "dretch"]
[Black "THE_PLAYER6"]
[Result "1/2-1/2"]
[WhiteElo "2843"]
[BlackElo "2622"]
[TimeControl "180+1"]
[EndTime "14:54:55 PDT"]
[Termination "Game drawn by 50-move rule"]

1. d4 {[%clk 0:02:54.1]} 1... Nf6 {[%clk 0:02:54.9]} 2. c4 {[%clk 0:02:54.1]}
2... e6 {[%clk 0:02:54.8]} 3. Nc3 {[%clk 0:02:52.9]} 3... Bb4 {[%clk 0:02:54.4]}
4. Qc2 {[%clk 0:02:53.3]} 4... d5 {[%clk 0:02:54.1]} 5. cxd5 {[%clk 0:02:53.1]}
5... exd5 {[%clk 0:02:54.2]} 6. Bg5 {[%clk 0:02:52.4]} 6... h6 {[%clk
0:02:50.1]} 7. Bxf6 {[%clk 0:02:50.2]} 7... Qxf6 {[%clk 0:02:49.6]} 8. a3 {[%clk
0:02:50.7]} 8... Bxc3+ {[%clk 0:02:45.6]} 9. Qxc3 {[%clk 0:02:50.8]} 9... O-O
{[%clk 0:02:44.8]} 10. e3 {[%clk 0:02:50.8]} 10... Bf5 {[%clk 0:02:41.6]} 11.
Nf3 {[%clk 0:02:45.4]} 11... Nd7 {[%clk 0:02:33.4]} 12. Rc1 {[%clk 0:02:42.5]}
12... Rfc8 {[%clk 0:02:29.2]} 13. Be2 {[%clk 0:02:41.5]} 13... c5 {[%clk
0:02:29.2]} 14. O-O {[%clk 0:02:32.1]} 14... c4 {[%clk 0:02:24.5]} 15. Ne5
{[%clk 0:02:25.9]} 15... Nxe5 {[%clk 0:02:21.6]} 16. dxe5 {[%clk 0:02:25.9]}
16... Qe6 {[%clk 0:02:16.3]} 17. Rfd1 {[%clk 0:02:22.4]} 17... Re8 {[%clk
0:02:13]} 18. f4 {[%clk 0:01:23.8]} 18... Be4 {[%clk 0:01:59.5]} 19. Qb4 {[%clk
0:01:18.8]} 19... a5 {[%clk 0:01:48.8]} 20. Qb5 {[%clk 0:01:13.5]} 20... b6
{[%clk 0:01:44.5]} 21. b3 {[%clk 0:01:10.2]} 21... Qg6 {[%clk 0:01:34.3]} 22.
Bf1 {[%clk 0:00:55.8]} 22... cxb3 {[%clk 0:01:23.7]} 23. Qxb3 {[%clk 0:00:45]}
23... Rac8 {[%clk 0:01:22.4]} 24. Qb5 {[%clk 0:00:38.1]} 24... Kh7 {[%clk
0:01:14.6]} 25. Re1 {[%clk 0:00:17.1]} 25... h5 {[%clk 0:01:13.7]} 26. Qb2
{[%clk 0:00:12.7]} 26... h4 {[%clk 0:01:12.1]} 27. Qf2 {[%clk 0:00:13]} 27...
Qg4 {[%clk 0:01:10.3]} 28. Be2 {[%clk 0:00:12.5]} 28... Qg6 {[%clk 0:01:04]} 29.
Qxh4+ {[%clk 0:00:12.2]} 29... Kg8 {[%clk 0:01:04.6]} 30. Qg4 {[%clk 0:00:12.6]}
30... Qxg4 {[%clk 0:00:55.8]} 31. Bxg4 {[%clk 0:00:13.5]} 31... Rxc1 {[%clk
0:00:54.6]} 32. Rxc1 {[%clk 0:00:13.5]} 32... b5 {[%clk 0:00:55.1]} 33. Rc7
{[%clk 0:00:07.3]} 33... Rb8 {[%clk 0:00:53.6]} 34. e6 {[%clk 0:00:07.9]} 34...
fxe6 {[%clk 0:00:44.2]} 35. Bxe6+ {[%clk 0:00:08.8]} 35... Kh8 {[%clk
0:00:42.5]} 36. Rc5 {[%clk 0:00:09]} 36... b4 {[%clk 0:00:32.7]} 37. axb4 {[%clk
0:00:09.9]} 37... axb4 {[%clk 0:00:32.3]} 38. Bxd5 {[%clk 0:00:10.3]} 38... Bg6
{[%clk 0:00:24.4]} 39. e4 {[%clk 0:00:07.4]} 39... b3 {[%clk 0:00:21.8]} 40. Rc1
{[%clk 0:00:07.7]} 40... b2 {[%clk 0:00:19.4]} 41. Rb1 {[%clk 0:00:08.2]} 41...
Rb5 {[%clk 0:00:19.3]} 42. f5 {[%clk 0:00:06.9]} 42... Bh5 {[%clk 0:00:17.6]}
43. Kf2 {[%clk 0:00:06.9]} 43... Bd1 {[%clk 0:00:13]} 44. Rxd1 {[%clk
0:00:04.4]} 44... b1=Q {[%clk 0:00:13.9]} 45. Rxb1 {[%clk 0:00:05]} 45... Rxb1
{[%clk 0:00:14.4]} 46. g4 {[%clk 0:00:05.5]} 46... Kh7 {[%clk 0:00:14]} 47. h4
{[%clk 0:00:05.6]} 47... Rb2+ {[%clk 0:00:14.4]} 48. Kf3 {[%clk 0:00:05.8]}
48... Kh6 {[%clk 0:00:13.5]} 49. Bf7 {[%clk 0:00:05.8]} 49... Rb1 {[%clk
0:00:09.5]} 50. g5+ {[%clk 0:00:06]} 50... Kh7 {[%clk 0:00:10]} 51. h5 {[%clk
0:00:06.2]} 51... Rg1 {[%clk 0:00:08.9]} 52. Kf4 {[%clk 0:00:06.4]} 52... Rf1+
{[%clk 0:00:08.6]} 53. Ke5 {[%clk 0:00:06.8]} 53... Rg1 {[%clk 0:00:09.5]} 54.
Bg6+ {[%clk 0:00:05.3]} 54... Kg8 {[%clk 0:00:09.8]} 55. Kd6 {[%clk 0:00:05.5]}
55... Rxg5 {[%clk 0:00:09.1]} 56. e5 {[%clk 0:00:06.4]} 56... Rg1 {[%clk
0:00:08.7]} 57. e6 {[%clk 0:00:06.9]} 57... Rd1+ {[%clk 0:00:09]} 58. Ke7 {[%clk
0:00:07.1]} 58... Ra1 {[%clk 0:00:08.8]} 59. Bf7+ {[%clk 0:00:07.4]} 59... Kh7
{[%clk 0:00:08.4]} 60. Kf8 {[%clk 0:00:08.3]} 60... Ra8+ {[%clk 0:00:07.6]} 61.
Ke7 {[%clk 0:00:04.2]} 61... Kh6 {[%clk 0:00:07.2]} 62. Kd7 {[%clk 0:00:04.2]}
62... Ra7+ {[%clk 0:00:06.5]} 63. Kd6 {[%clk 0:00:04.7]} 63... Ra6+ {[%clk
0:00:06.7]} 64. Kc7 {[%clk 0:00:05.3]} 64... Ra7+ {[%clk 0:00:06.5]} 65. Kb6
{[%clk 0:00:05.8]} 65... Re7 {[%clk 0:00:06.6]} 66. Kc6 {[%clk 0:00:06.3]} 66...
Kg5 {[%clk 0:00:06.9]} 67. Bg6 {[%clk 0:00:06.5]} 67... Kf6 {[%clk 0:00:05.2]}
68. Kd6 {[%clk 0:00:06.8]} 68... Ra7 {[%clk 0:00:05.4]} 69. Kc6 {[%clk
0:00:07.2]} 69... Ra6+ {[%clk 0:00:03.8]} 70. Kc7 {[%clk 0:00:07.2]} 70... Ra7+
{[%clk 0:00:04]} 71. Kd8 {[%clk 0:00:07.8]} 71... Ra8+ {[%clk 0:00:03.5]} 72.
Kc7 {[%clk 0:00:08.5]} 72... Ra7+ {[%clk 0:00:04]} 73. Kb6 {[%clk 0:00:09.2]}
73... Re7 {[%clk 0:00:04.1]} 74. Kc5 {[%clk 0:00:09.7]} 74... Rc7+ {[%clk
0:00:04.2]} 75. Kd5 {[%clk 0:00:10.3]} 75... Ra7 {[%clk 0:00:04.7]} 76. Ke4
{[%clk 0:00:11]} 76... Kg5 {[%clk 0:00:04.7]} 77. Ke5 {[%clk 0:00:11.3]} 77...
Ra5+ {[%clk 0:00:04.6]} 78. Kd6 {[%clk 0:00:11.8]} 78... Kf6 {[%clk 0:00:04.5]}
79. Kd7 {[%clk 0:00:11.8]} 79... Ra7+ {[%clk 0:00:04.6]} 80. Kc6 {[%clk
0:00:12.4]} 80... Ra6+ {[%clk 0:00:04.8]} 81. Kb5 {[%clk 0:00:13]} 81... Ra7
{[%clk 0:00:04.9]} 82. Kc4 {[%clk 0:00:13.6]} 82... Ra8 {[%clk 0:00:04.7]} 83.
Kd4 {[%clk 0:00:14.2]} 83... Ke7 {[%clk 0:00:04.5]} 84. Ke5 {[%clk 0:00:14.4]}
84... Ra1 {[%clk 0:00:04.8]} 85. Kf4 {[%clk 0:00:14.6]} 85... Rf1+ {[%clk
0:00:04.9]} 86. Kg5 {[%clk 0:00:14.9]} 86... Rg1+ {[%clk 0:00:05.3]} 87. Kf4
{[%clk 0:00:15.5]} 87... Kf6 {[%clk 0:00:05.8]} 88. Ke4 {[%clk 0:00:15.8]} 88...
Ra1 {[%clk 0:00:05.7]} 89. Kd5 {[%clk 0:00:16.2]} 89... Ra6 {[%clk 0:00:05.9]}
90. Kc5 {[%clk 0:00:16.6]} 90... Ke5 {[%clk 0:00:05]} 91. Kb5 {[%clk 0:00:16.5]}
91... Ra7 {[%clk 0:00:05.3]} 92. Kb6 {[%clk 0:00:16.9]} 92... Re7 {[%clk
0:00:05.2]} 93. Kc6 {[%clk 0:00:17.4]} 93... Kf6 {[%clk 0:00:04.7]} 94. Kc5
{[%clk 0:00:17.8]} 94... Ra7 {[%clk 0:00:04.7]} 95. Kb6 {[%clk 0:00:18.3]} 95...
Ra1 {[%clk 0:00:04.6]} 96. Kc7 {[%clk 0:00:18.1]} 96... Rd1 {[%clk 0:00:04.7]}
97. Kc6 {[%clk 0:00:18.2]} 97... Ke7 {[%clk 0:00:05.2]} 98. Kc5 {[%clk
0:00:18.5]} 98... Rd2 {[%clk 0:00:05]} 99. Kc4 {[%clk 0:00:18.9]} 99... Kd6
{[%clk 0:00:04]} 100. Kc3 {[%clk 0:00:19.2]} 100... Rf2 {[%clk 0:00:04.5]} 101.
Kd3 {[%clk 0:00:19.5]} 101... Rf4 {[%clk 0:00:04.7]} 102. Ke3 {[%clk 0:00:19.9]}
102... Rh4 {[%clk 0:00:05.3]} 103. Kf3 {[%clk 0:00:20.3]} 103... Ra4 {[%clk
0:00:04.9]} 104. Kg3 {[%clk 0:00:20.7]} 104... Ke7 {[%clk 0:00:04.7]} 105. Kf3
{[%clk 0:00:20.9]} 105... Kf6 {[%clk 0:00:05.6]} 106. Ke3 {[%clk 0:00:21.4]}
106... Rb4 {[%clk 0:00:04.2]} 107. Kd3 {[%clk 0:00:21.1]} 1/2-1/2

[Event "Late-Titled-Tuesday-Blitz-October-10-2023"]
[Site "Chess.com"]
[Date "2023.10.10"]
[Round "6"]
[White "shimastream"]
[Black "tjallkompall"]
[Result "1-0"]
[WhiteElo "2994"]
[BlackElo "2752"]
[TimeControl "180+1"]
[EndTime "14:57:53 PDT"]
[Termination "shimastream won by resignation"]

1. d4 {[%clk 0:03:00.9]} 1... Nf6 {[%clk 0:02:58.8]} 2. Bg5 {[%clk 0:03:00.4]}
2... c5 {[%clk 0:02:58.4]} 3. Nc3 {[%clk 0:02:56.9]} 3... cxd4 {[%clk
0:02:56.8]} 4. Qxd4 {[%clk 0:02:57.8]} 4... Nc6 {[%clk 0:02:57.2]} 5. Qh4 {[%clk
0:02:56.2]} 5... d6 {[%clk 0:02:48.9]} 6. O-O-O {[%clk 0:02:54.4]} 6... Qa5
{[%clk 0:02:46.2]} 7. e4 {[%clk 0:02:52.8]} 7... Be6 {[%clk 0:02:43]} 8. a3
{[%clk 0:02:50.2]} 8... Rc8 {[%clk 0:02:42]} 9. Nge2 {[%clk 0:02:49.1]} 9... h6
{[%clk 0:02:39.5]} 10. Bxf6 {[%clk 0:02:45.8]} 10... exf6 {[%clk 0:02:35.9]} 11.
Kb1 {[%clk 0:02:40.9]} 11... Ne5 {[%clk 0:02:32.5]} 12. f4 {[%clk 0:02:30.7]}
12... Nc4 {[%clk 0:02:30.4]} 13. Rd3 {[%clk 0:02:15.4]} 13... f5 {[%clk
0:02:06.7]} 14. Nd4 {[%clk 0:02:06.6]} 14... fxe4 {[%clk 0:02:06.5]} 15. Nxe4
{[%clk 0:02:07.5]} 15... Qe1+ {[%clk 0:02:04]} 16. Qxe1 {[%clk 0:02:06.3]} 1-0

[Event "Late-Titled-Tuesday-Blitz-October-10-2023"]
[Site "Chess.com"]
[Date "2023.10.10"]
[Round "6"]
[White "GAO"]
[Black "luizzy"]
[Result "0-1"]
[WhiteElo "2349"]
[BlackElo "2548"]
[TimeControl "180+1"]
[EndTime "14:58:25 PDT"]
[Termination "luizzy won by resignation"]

1. Nf3 {[%clk 0:02:54.3]} 1... Nf6 {[%clk 0:02:58.7]} 2. d4 {[%clk 0:02:54.3]}
2... g6 {[%clk 0:02:57]} 3. Bg5 {[%clk 0:02:54.8]} 3... Bg7 {[%clk 0:02:56.4]}
4. Nbd2 {[%clk 0:02:55.2]} 4... d5 {[%clk 0:02:54.6]} 5. e3 {[%clk 0:02:55.4]}
5... O-O {[%clk 0:02:54.6]} 6. Bd3 {[%clk 0:02:55.2]} 6... c5 {[%clk 0:02:49.6]}
7. c3 {[%clk 0:02:54.9]} 7... Qb6 {[%clk 0:02:45.9]} 8. Rb1 {[%clk 0:02:50.4]}
8... Nc6 {[%clk 0:02:38.8]} 9. O-O {[%clk 0:02:50.3]} 9... Bf5 {[%clk
0:02:35.7]} 10. Bxf5 {[%clk 0:02:49.5]} 10... gxf5 {[%clk 0:02:36.6]} 11. a3
{[%clk 0:02:48.9]} 11... c4 {[%clk 0:02:32.1]} 12. b3 {[%clk 0:02:43.2]} 12...
cxb3 {[%clk 0:02:28.6]} 13. Nxb3 {[%clk 0:02:41.8]} 13... Qc7 {[%clk 0:02:23.8]}
14. Bf4 {[%clk 0:02:37.6]} 14... Qc8 {[%clk 0:02:19.6]} 15. Nc5 {[%clk
0:02:27.5]} 15... b6 {[%clk 0:02:17.2]} 16. Nd3 {[%clk 0:02:27.3]} 16... Ne4
{[%clk 0:02:15.5]} 17. Qc2 {[%clk 0:02:26.1]} 17... Na5 {[%clk 0:02:13.1]} 18.
Nde5 {[%clk 0:02:25.7]} 18... Qxc3 {[%clk 0:02:05.9]} 19. Rfc1 {[%clk
0:02:22.7]} 19... Rfc8 {[%clk 0:02:01.2]} 20. Qxc3 {[%clk 0:02:04.2]} 20... Nxc3
{[%clk 0:02:00.2]} 0-1

[Event "Late-Titled-Tuesday-Blitz-October-10-2023"]
[Site "Chess.com"]
[Date "2023.10.10"]
[Round "6"]
[White "GMKrikor"]
[Black "stasOR4ik"]
[Result "1-0"]
[WhiteElo "2790"]
[BlackElo "2452"]
[TimeControl "180+1"]
[EndTime "14:59:01 PDT"]
[Termination "GMKrikor won by resignation"]

1. Nf3 {[%clk 0:03:00.9]} 1... d5 {[%clk 0:03:00]} 2. c4 {[%clk 0:03:00.8]} 2...
c6 {[%clk 0:03:00.2]} 3. d4 {[%clk 0:03:00.7]} 3... Nf6 {[%clk 0:03:00.4]} 4.
Nc3 {[%clk 0:03:01.3]} 4... dxc4 {[%clk 0:03:00.2]} 5. a4 {[%clk 0:03:01.2]}
5... Bf5 {[%clk 0:02:56.7]} 6. Nh4 {[%clk 0:03:01.7]} 6... Bd7 {[%clk 0:02:49]}
7. e4 {[%clk 0:03:01.1]} 7... e6 {[%clk 0:02:41.2]} 8. Bxc4 {[%clk 0:03:01.5]}
8... Be7 {[%clk 0:02:39.6]} 9. Nf3 {[%clk 0:03:00.6]} 9... a6 {[%clk 0:02:37.3]}
10. O-O {[%clk 0:03:00]} 10... O-O {[%clk 0:02:37]} 11. Re1 {[%clk 0:02:58.1]}
11... Re8 {[%clk 0:02:37.4]} 12. h4 {[%clk 0:02:57.4]} 12... Ng4 {[%clk
0:02:25.2]} 13. h5 {[%clk 0:02:54.7]} 13... a5 {[%clk 0:02:15]} 14. e5 {[%clk
0:02:51.7]} 14... f5 {[%clk 0:02:09]} 15. exf6 {[%clk 0:02:51.5]} 15... Bxf6
{[%clk 0:02:09.2]} 16. Re4 {[%clk 0:02:48]} 16... Nh6 {[%clk 0:02:03.3]} 17.
Bxh6 {[%clk 0:02:47.6]} 17... gxh6 {[%clk 0:02:04.2]} 18. Qd2 {[%clk 0:02:44.5]}
18... Bg7 {[%clk 0:02:00.6]} 19. Rae1 {[%clk 0:02:42.6]} 19... Qf6 {[%clk
0:01:56.9]} 20. Ne5 {[%clk 0:02:42.1]} 20... Kh8 {[%clk 0:01:49.4]} 21. Rf4
{[%clk 0:02:41]} 21... Qe7 {[%clk 0:01:44.6]} 22. Rf7 {[%clk 0:02:38.7]} 22...
Qd6 {[%clk 0:01:42.4]} 23. Qf4 {[%clk 0:02:30.2]} 23... Rf8 {[%clk 0:01:35]} 24.
Ng6+ {[%clk 0:02:07.7]} 24... hxg6 {[%clk 0:01:34.6]} 25. Qxd6 {[%clk
0:02:08.4]} 25... Rxf7 {[%clk 0:01:34.9]} 26. Bxe6 {[%clk 0:02:06.9]} 26... Bxe6
{[%clk 0:01:34]} 27. Rxe6 {[%clk 0:02:05.9]} 27... Rd7 {[%clk 0:01:23.9]} 28.
Re8+ {[%clk 0:02:03.4]} 1-0

[Event "Late-Titled-Tuesday-Blitz-October-10-2023"]
[Site "Chess.com"]
[Date "2023.10.10"]
[Round "6"]
[White "Horokoskii"]
[Black "Blackwhite017"]
[Result "1-0"]
[WhiteElo "2124"]
[BlackElo "2039"]
[TimeControl "180+1"]
[EndTime "14:59:18 PDT"]
[Termination "Horokoskii won by resignation"]

1. c4 {[%clk 0:02:52.8]} 1... c6 {[%clk 0:02:59]} 2. e4 {[%clk 0:02:49.1]} 2...
d5 {[%clk 0:02:56.8]} 3. exd5 {[%clk 0:02:49.3]} 3... cxd5 {[%clk 0:02:57.7]} 4.
d4 {[%clk 0:02:49.5]} 4... Nf6 {[%clk 0:02:50.6]} 5. Nf3 {[%clk 0:02:31]} 5...
a6 {[%clk 0:02:49.9]} 6. Nc3 {[%clk 0:02:25.7]} 6... e6 {[%clk 0:02:49.6]} 7.
Bg5 {[%clk 0:02:22.9]} 7... dxc4 {[%clk 0:02:42.4]} 8. Bxc4 {[%clk 0:02:21]}
8... Be7 {[%clk 0:02:42.9]} 9. O-O {[%clk 0:02:19.4]} 9... O-O {[%clk
0:02:42.7]} 10. Re1 {[%clk 0:02:18.9]} 10... b5 {[%clk 0:02:37.2]} 11. Bb3
{[%clk 0:02:18.3]} 11... Bb7 {[%clk 0:02:35.6]} 12. Qe2 {[%clk 0:02:17.6]} 12...
Nc6 {[%clk 0:02:27.2]} 13. Rad1 {[%clk 0:02:15.7]} 13... Nb4 {[%clk 0:02:25]}
14. d5 {[%clk 0:02:13.1]} 14... e5 {[%clk 0:01:11.1]} 15. a3 {[%clk 0:02:06]}
15... e4 {[%clk 0:00:58.3]} 16. axb4 {[%clk 0:02:00.2]} 16... exf3 {[%clk
0:00:57.3]} 17. Qxe7 {[%clk 0:01:59.9]} 1-0

[Event "Late-Titled-Tuesday-Blitz-October-10-2023"]
[Site "Chess.com"]
[Date "2023.10.10"]
[Round "6"]
[White "Smiechu"]
[Black "Andrei_Skvortsov"]
[Result "1/2-1/2"]
[WhiteElo "2518"]
[BlackElo "2665"]
[TimeControl "180+1"]
[EndTime "14:59:22 PDT"]
[Termination "Game drawn by repetition"]

1. e4 {[%clk 0:03:00.9]} 1... c5 {[%clk 0:02:48.8]} 2. Nf3 {[%clk 0:02:59.4]}
2... d6 {[%clk 0:02:49.1]} 3. d4 {[%clk 0:02:59.4]} 3... cxd4 {[%clk 0:02:49.4]}
4. Nxd4 {[%clk 0:03:00.1]} 4... Nf6 {[%clk 0:02:50]} 5. Nc3 {[%clk 0:03:00.7]}
5... g6 {[%clk 0:02:50.5]} 6. Be3 {[%clk 0:03:00.2]} 6... Bg7 {[%clk 0:02:51.1]}
7. f3 {[%clk 0:03:00.5]} 7... O-O {[%clk 0:02:51.8]} 8. Qd2 {[%clk 0:03:00.4]}
8... d5 {[%clk 0:02:52.5]} 9. exd5 {[%clk 0:02:56.7]} 9... Nxd5 {[%clk
0:02:51.4]} 10. Nxd5 {[%clk 0:02:54.4]} 10... Qxd5 {[%clk 0:02:52.3]} 11. c3
{[%clk 0:02:23.6]} 11... Nc6 {[%clk 0:02:40.7]} 12. Nxc6 {[%clk 0:02:16.2]}
12... Qxc6 {[%clk 0:02:41.6]} 13. Be2 {[%clk 0:02:10.6]} 13... Bf5 {[%clk
0:02:40.9]} 14. O-O {[%clk 0:02:05.9]} 14... Rad8 {[%clk 0:02:41.4]} 15. Qe1
{[%clk 0:02:06]} 15... a6 {[%clk 0:02:35.5]} 16. Qf2 {[%clk 0:02:05.1]} 16...
Bd3 {[%clk 0:02:35.1]} 17. Rfd1 {[%clk 0:02:01]} 17... Bxe2 {[%clk 0:02:35]} 18.
Qxe2 {[%clk 0:02:01.3]} 18... Rfe8 {[%clk 0:02:29.2]} 19. Rxd8 {[%clk
0:01:59.4]} 19... Rxd8 {[%clk 0:02:30.1]} 20. Rd1 {[%clk 0:01:59]} 20... Rd6
{[%clk 0:02:29.4]} 21. Rxd6 {[%clk 0:01:50.9]} 21... Qxd6 {[%clk 0:02:30.3]} 22.
Qd2 {[%clk 0:01:48.6]} 22... Be5 {[%clk 0:02:26.7]} 23. Qxd6 {[%clk 0:01:45.1]}
23... Bxd6 {[%clk 0:02:27.6]} 24. Kf2 {[%clk 0:01:43.8]} 24... f5 {[%clk
0:02:27.3]} 25. h3 {[%clk 0:01:38.8]} 25... Kf7 {[%clk 0:02:27.7]} 26. Ke2
{[%clk 0:01:38.9]} 26... Ke6 {[%clk 0:02:28.1]} 27. Kd3 {[%clk 0:01:39]} 27...
Kd5 {[%clk 0:02:28.8]} 28. c4+ {[%clk 0:01:38.7]} 28... Kc6 {[%clk 0:02:29.4]}
29. Kc3 {[%clk 0:01:35.9]} 29... e5 {[%clk 0:02:25.9]} 30. b4 {[%clk 0:01:33.3]}
30... b5 {[%clk 0:02:26.5]} 31. cxb5+ {[%clk 0:01:19.4]} 31... axb5 {[%clk
0:02:26.1]} 32. Kb3 {[%clk 0:01:19.4]} 32... Bc7 {[%clk 0:02:24.6]} 33. a4
{[%clk 0:01:17.6]} 33... Bd6 {[%clk 0:02:21.4]} 34. Bf2 {[%clk 0:01:10.6]} 34...
Bc7 {[%clk 0:02:18.3]} 35. Be3 {[%clk 0:01:09.3]} 35... Bd6 {[%clk 0:02:17.3]}
36. Bf2 {[%clk 0:01:09.4]} 36... Bc7 {[%clk 0:02:17.2]} 37. Be3 {[%clk
0:01:09.7]} 1/2-1/2

[Event "Late-Titled-Tuesday-Blitz-October-10-2023"]
[Site "Chess.com"]
[Date "2023.10.10"]
[Round "6"]
[White "lluiss"]
[Black "EsmeraldasAnderson03"]
[Result "0-1"]
[WhiteElo "2210"]
[BlackElo "2422"]
[TimeControl "180+1"]
[EndTime "14:59:41 PDT"]
[Termination "EsmeraldasAnderson03 won by checkmate"]

1. Nf3 {[%clk 0:03:00.9]} 1... e5 {[%clk 0:03:00.9]} 2. Nxe5 {[%clk 0:02:59.3]}
2... Nf6 {[%clk 0:02:59.4]} 3. d4 {[%clk 0:02:58]} 3... d6 {[%clk 0:02:58.2]} 4.
Nf3 {[%clk 0:02:54.9]} 4... Be7 {[%clk 0:02:58.8]} 5. Bf4 {[%clk 0:02:53.4]}
5... O-O {[%clk 0:02:59.2]} 6. e3 {[%clk 0:02:53.6]} 6... Bf5 {[%clk 0:02:55.6]}
7. Bd3 {[%clk 0:02:53.2]} 7... Bxd3 {[%clk 0:02:54.7]} 8. cxd3 {[%clk
0:02:52.7]} 8... Nh5 {[%clk 0:02:54.2]} 9. Bg3 {[%clk 0:02:52.1]} 9... Nxg3
{[%clk 0:02:54.6]} 10. hxg3 {[%clk 0:02:51.7]} 10... h6 {[%clk 0:02:55.5]} 11.
Nc3 {[%clk 0:02:49]} 11... c6 {[%clk 0:02:54.2]} 12. d5 {[%clk 0:02:47.1]} 12...
c5 {[%clk 0:02:52.1]} 13. O-O {[%clk 0:02:33.8]} 13... a6 {[%clk 0:02:52.1]} 14.
d4 {[%clk 0:02:34]} 14... c4 {[%clk 0:02:51.8]} 15. e4 {[%clk 0:02:32]} 15... b5
{[%clk 0:02:51.8]} 16. a3 {[%clk 0:02:31.3]} 16... Nd7 {[%clk 0:02:51.3]} 17. e5
{[%clk 0:02:30.9]} 17... Qb6 {[%clk 0:02:43.1]} 18. Re1 {[%clk 0:02:22.3]} 18...
Rfe8 {[%clk 0:02:42.2]} 19. Qd2 {[%clk 0:02:15.4]} 19... Bf8 {[%clk 0:02:41.7]}
20. e6 {[%clk 0:02:13.2]} 20... Nf6 {[%clk 0:02:40.8]} 21. Re2 {[%clk
0:02:00.7]} 21... a5 {[%clk 0:02:40.3]} 22. Rae1 {[%clk 0:01:51.2]} 22... b4
{[%clk 0:02:40.1]} 23. Na4 {[%clk 0:01:46.1]} 23... Qb5 {[%clk 0:02:38.9]} 24.
exf7+ {[%clk 0:01:45.2]} 24... Kxf7 {[%clk 0:02:38.5]} 25. Rxe8 {[%clk 0:01:45]}
25... Rxe8 {[%clk 0:02:39.2]} 26. Rxe8 {[%clk 0:01:43.8]} 26... Kxe8 {[%clk
0:02:39.3]} 27. Qc2 {[%clk 0:01:24.4]} 27... Be7 {[%clk 0:02:28.7]} 28. axb4
{[%clk 0:01:22.4]} 28... axb4 {[%clk 0:02:28.8]} 29. b3 {[%clk 0:01:19.9]} 29...
c3 {[%clk 0:02:27.5]} 30. Qf5 {[%clk 0:01:12.1]} 30... Qxd5 {[%clk 0:02:25.2]}
31. Qc8+ {[%clk 0:01:11.6]} 31... Kf7 {[%clk 0:02:25]} 32. Nb6 {[%clk
0:01:09.7]} 32... Qxb3 {[%clk 0:02:24.7]} 33. d5 {[%clk 0:00:39.4]} 33... Qd1+
{[%clk 0:02:23.4]} 34. Kh2 {[%clk 0:00:38.6]} 34... Ng4+ {[%clk 0:02:23.7]} 35.
Kh3 {[%clk 0:00:38.6]} 35... Nxf2+ {[%clk 0:02:24.4]} 36. Kh2 {[%clk 0:00:37.1]}
36... Qh1# {[%clk 0:02:25.1]} 0-1

[Event "Late-Titled-Tuesday-Blitz-October-10-2023"]
[Site "Chess.com"]
[Date "2023.10.10"]
[Round "6"]
[White "ElCoachRene"]
[Black "rickywsb"]
[Result "0-1"]
[WhiteElo "2156"]
[BlackElo "2347"]
[TimeControl "180+1"]
[EndTime "14:59:48 PDT"]
[Termination "rickywsb won by resignation"]

1. d4 {[%clk 0:01:51.5]} 1... d5 {[%clk 0:02:59.4]} 2. Bf4 {[%clk 0:01:47]} 2...
Nf6 {[%clk 0:02:59.1]} 3. e3 {[%clk 0:01:46.6]} 3... c5 {[%clk 0:02:59.8]} 4. c3
{[%clk 0:01:45.9]} 4... Nc6 {[%clk 0:02:57.7]} 5. Nd2 {[%clk 0:01:45]} 5... e6
{[%clk 0:02:57.3]} 6. Ngf3 {[%clk 0:01:45.1]} 6... cxd4 {[%clk 0:02:57.8]} 7.
exd4 {[%clk 0:01:44.8]} 7... Nh5 {[%clk 0:02:58]} 8. Bg3 {[%clk 0:01:41.1]} 8...
Nxg3 {[%clk 0:02:57.8]} 9. hxg3 {[%clk 0:01:42]} 9... Bd6 {[%clk 0:02:54]} 10.
Bd3 {[%clk 0:01:42.2]} 10... h6 {[%clk 0:02:49.7]} 11. Qe2 {[%clk 0:01:41.7]}
11... a6 {[%clk 0:02:42.8]} 12. Ne5 {[%clk 0:01:40.9]} 12... Nxe5 {[%clk
0:02:36.4]} 13. dxe5 {[%clk 0:01:40.2]} 13... Bc5 {[%clk 0:02:37.1]} 14. Qg4
{[%clk 0:01:31.7]} 14... g5 {[%clk 0:01:52.1]} 15. Nf3 {[%clk 0:01:05.1]} 15...
Qb6 {[%clk 0:01:51]} 16. O-O-O {[%clk 0:01:01.7]} 16... Bxf2 {[%clk 0:01:47.8]}
17. Kb1 {[%clk 0:00:50.9]} 17... Be3 {[%clk 0:01:39]} 0-1

[Event "Late-Titled-Tuesday-Blitz-October-10-2023"]
[Site "Chess.com"]
[Date "2023.10.10"]
[Round "6"]
[White "Grossboss19"]
[Black "EfrenRamos1"]
[Result "1-0"]
[WhiteElo "2499"]
[BlackElo "2391"]
[TimeControl "180+1"]
[EndTime "14:59:56 PDT"]
[Termination "Grossboss19 won by resignation"]

1. Nf3 {[%clk 0:02:57.4]} 1... d5 {[%clk 0:02:54.1]} 2. c4 {[%clk 0:02:54.3]}
2... c6 {[%clk 0:02:53]} 3. b3 {[%clk 0:02:52]} 3... Nf6 {[%clk 0:02:52.3]} 4.
Bb2 {[%clk 0:02:51.9]} 4... g6 {[%clk 0:02:50.7]} 5. g3 {[%clk 0:02:52.2]} 5...
Bg7 {[%clk 0:02:50.4]} 6. Bg2 {[%clk 0:02:48.4]} 6... O-O {[%clk 0:02:49.9]} 7.
O-O {[%clk 0:02:45.4]} 7... a5 {[%clk 0:02:49.2]} 8. a4 {[%clk 0:02:41.1]} 8...
Na6 {[%clk 0:02:48.4]} 9. d3 {[%clk 0:02:40.4]} 9... Nb4 {[%clk 0:02:35.3]} 10.
Na3 {[%clk 0:02:34.2]} 10... Re8 {[%clk 0:02:33.6]} 11. Nc2 {[%clk 0:02:26.9]}
11... dxc4 {[%clk 0:02:25.5]} 12. Nxb4 {[%clk 0:02:17.7]} 12... axb4 {[%clk
0:02:23.9]} 13. dxc4 {[%clk 0:02:17.1]} 13... Qxd1 {[%clk 0:02:17.6]} 14. Rfxd1
{[%clk 0:02:08.1]} 14... Bf5 {[%clk 0:02:15.7]} 15. Ne1 {[%clk 0:02:04.5]} 15...
Ne4 {[%clk 0:02:11.9]} 16. Bxg7 {[%clk 0:02:03.8]} 16... Kxg7 {[%clk 0:02:11.7]}
17. Bxe4 {[%clk 0:02:04.2]} 17... Bxe4 {[%clk 0:02:11.3]} 18. f3 {[%clk
0:02:05.1]} 18... Bf5 {[%clk 0:02:09.3]} 19. e4 {[%clk 0:02:06]} 19... Be6
{[%clk 0:02:09.3]} 20. Nd3 {[%clk 0:02:05.9]} 20... b5 {[%clk 0:02:07.6]} 21.
axb5 {[%clk 0:01:44.5]} 21... cxb5 {[%clk 0:02:06.8]} 22. c5 {[%clk 0:01:31.3]}
22... Bxb3 {[%clk 0:02:03.8]} 23. Rxa8 {[%clk 0:01:24.2]} 23... Rxa8 {[%clk
0:02:01.3]} 24. Rc1 {[%clk 0:01:22.8]} 24... Bc4 {[%clk 0:01:58.7]} 25. Nxb4
{[%clk 0:01:22.5]} 25... e6 {[%clk 0:01:54]} 26. c6 {[%clk 0:01:19.3]} 26... Kf8
{[%clk 0:01:50.5]} 27. Rd1 {[%clk 0:01:19]} 27... Ke8 {[%clk 0:01:49.8]} 28. c7
{[%clk 0:01:15.3]} 28... Rc8 {[%clk 0:01:48.6]} 29. Nc6 {[%clk 0:01:15.1]} 1-0